bitfinex/quotes_SOLUSD_20251018
["timestamp","ask_amount","ask_price","bid_price","bid_amount"]
[1760775033027,18.19066548,187.3,187.29,36.64483802]
[1760775034032,1.97516198,187.3,187.29,37.29483802]
[1760775034230,1.97516198,187.3,187.29,36.64483802]
[1760775035032,30.19419027,187.3,187.29,36.64483802]
[1760775035519,5.33874447,187.31,187.29,36.64483802]
[1760775035728,24.85516198,187.3,187.29,37.29483802]
[1760775038029,24.85516198,187.3,187.29,36.64483802]
[1760775038235,1.97516198,187.3,187.29,36.64483802]
[1760775039517,30.19419027,187.3,187.29,36.64483802]
[1760775040032,41.07066548,187.3,187.29,36.64483802]
[1760775040234,41.78066548,187.3,187.29,36.64483802]
[1760775040819,57.84879434,187.3,187.29,36.64483802]
[1760775041348,58.96071141,187.3,187.29,36.64483802]
[1760775042026,62.04779046,187.3,187.29,36.64483802]
[1760775042227,11.16079835,187.29,187.28,0.2]
[1760775042427,17.33495645,187.29,187.28,0.2]
[1760775042630,18.04495645,187.29,187.28,0.2]
[1760775043610,23.38426981,187.29,187.28,0.2]
[1760775044014,23.38426981,187.29,187.23,36.64483802]
[1760775044239,3.08707905,187.24,187.23,36.64483802]
[1760775045241,22.88,187.22,187.21,36.64483802]
[1760775045429,25.96707905,187.22,187.21,36.64483802]
[1760775045630,3.08707905,187.22,187.21,37.35483802]
[1760775045832,25.96707905,187.22,187.21,37.35483802]
[1760775047542,3.08707905,187.22,187.21,36.64483802]
[1760775048121,3.08707905,187.22,187.21,37.35483802]
[1760775048319,3.08707905,187.22,187.21,36.64483802]
[1760775050341,32.01838873,187.22,187.16,37.35483802]
[1760775050543,3.08707905,187.18,187.17,0.71]
[1760775050744,3.08707905,187.18,187.17,36.64483802]
[1760775051239,3.08707905,187.18,187.17,37.35483802]
[1760775052428,22.88,187.16,187.13,36.84483802]
[1760775052944,22.88,187.16,187.14,0.71]
[1760775054155,25.96707905,187.17,187.14,0.71]
[1760775054844,3.08707905,187.17,187.15,0.71]
[1760775055347,22.88,187.16,187.15,0.71]
[1760775056144,25.96707905,187.16,187.15,0.71]
[1760775056648,3.08707905,187.16,187.15,0.71]
[1760775058144,28.22257043,187.18,187.17,33.55775897]
[1760775058455,31.30964948,187.18,187.17,33.55775897]
[1760775061550,25.96707905,187.18,187.17,33.55775897]
[1760775062053,31.30953016,187.18,187.17,33.55775897]
[1760775062740,3.08707905,187.18,187.17,33.55775897]
[1760775062941,3.08707905,187.18,187.17,34.26775897]
[1760775063127,25.96707905,187.18,187.17,34.26775897]
[1760775063632,22.88,187.18,187.17,34.26775897]
[1760775063849,25.96707905,187.18,187.17,34.26775897]
[1760775064551,25.96707905,187.18,187.17,33.55775897]
[1760775066465,22.88,187.18,187.17,33.55775897]
[1760775066752,22.88,187.19,187.17,34.21775897]
[1760775066951,22.88,187.19,187.17,33.55775897]
[1760775067160,22.88,187.18,187.17,34.21775897]
[1760775069155,16.07501674,187.23,187.19,10.67775897]
[1760775069351,5.33988359,187.27,187.2,0.72]
[1760775069658,3.08707905,187.24,187.2,11.39775897]
[1760775069832,3.08707905,187.24,187.21,0.72]
[1760775070034,3.08707905,187.24,187.22,0.72]
[1760775070332,3.08707905,187.23,187.22,11.39775897]
[1760775070534,3.08707905,187.23,187.22,10.67775897]
[1760775071036,9.11810345,187.23,187.2,10.67775897]
[1760775071233,25.96707905,187.21,187.2,10.67775897]
[1760775071435,26.65707905,187.21,187.2,10.67775897]
[1760775072240,22.88,187.2,187.15,11.39775897]
[1760775072438,22.88,187.2,187.15,10.67775897]
[1760775072439,3.08707905,187.16,187.15,10.67775897]
[1760775073337,8.43010106,187.16,187.15,10.67775897]
[1760775073555,3.08707905,187.16,187.15,10.67775897]
[1760775074143,25.96707905,187.16,187.15,10.67775897]
[1760775074365,25.96707905,187.16,187.15,11.39775897]
[1760775074865,25.96707905,187.16,187.15,10.67775897]
[1760775074866,3.08707905,187.16,187.15,10.67775897]
[1760775075170,8.43010106,187.16,187.15,10.67775897]
[1760775076442,3.08707905,187.16,187.15,10.67775897]
[1760775078074,8.43010106,187.16,187.15,10.67775897]
[1760775078659,3.08707905,187.16,187.15,10.67775897]
[1760775080963,32.00010106,187.16,187.15,10.67775897]
[1760775081166,25.96707905,187.16,187.15,11.39775897]
[1760775081870,22.88,187.16,187.15,11.39775897]
[1760775084558,22.88,187.16,187.15,10.67775897]
[1760775084756,25.96707905,187.16,187.15,10.67775897]
[1760775085769,25.96707905,187.16,187.15,11.39775897]
[1760775087663,22.88,187.16,187.15,11.39775897]
[1760775088264,25.96707905,187.16,187.15,11.39775897]
[1760775089273,25.96707905,187.16,187.15,10.67775897]
[1760775090562,3.08707905,187.16,187.15,10.67775897]
[1760775090772,32.00010106,187.16,187.15,10.67775897]
[1760775090970,25.96707905,187.16,187.15,10.67775897]
[1760775091560,5.34136299,187.22,187.15,11.39775897]
[1760775091762,3.08707905,187.21,187.16,0.72]
[1760775091961,22.88,187.19,187.16,11.39775897]
[1760775092170,22.88,187.19,187.17,0.72]
[1760775092366,8.42785244,187.24,187.17,0.72]
[1760775092566,22.88,187.21,187.17,0.72]
[1760775093680,29.00028434,187.26,187.17,0.72]
[1760775093681,10.87647521,187.28,187.18,0.53424511]
[1760775093990,3.08707905,187.28,187.19,0.72]
[1760775094165,22.88,187.27,187.2,0.53418803]
[1760775094363,22.88,187.27,187.21,0.72]
[1760775094665,3.08707905,187.26,187.21,0.72]
[1760775094876,22.88,187.27,187.21,0.72]
[1760775094877,3.08707905,187.24,187.21,0.72]
[1760775095074,3.08707905,187.25,187.22,0.72]
[1760775095272,25.96707905,187.25,187.19,5.34216571]
[1760775095591,25.96707905,187.25,187.23,0.72]
[1760775095968,0.69,187.28,187.23,0.72]
[1760775096182,22.88,187.26,187.24,0.72]
[1760775096380,25.96707905,187.26,187.24,0.72]
[1760775097887,6.02940322,187.29,187.25,0.72]
[1760775097888,3.08707905,187.29,187.25,0.72]
[1760775098577,3.08707905,187.29,187.24,10.67775897]
[1760775098777,3.08707905,187.27,187.24,11.32775897]
[1760775099086,3.08707905,187.26,187.24,10.67775897]
[1760775099680,3.08707905,187.25,187.24,10.67775897]
[1760775099883,3.08707905,187.26,187.24,10.67775897]
[1760775100265,25.96707905,187.27,187.25,0.65]
[1760775100470,25.96707905,187.27,187.24,10.67775897]
[1760775100666,3.08707905,187.26,187.24,10.67775897]
[1760775100871,22.88,187.26,187.24,10.67775897]
[1760775101092,25.96707905,187.26,187.24,10.67775897]
[1760775101389,2.65549493,187.25,187.24,10.67775897]
[1760775101588,25.53549493,187.25,187.24,10.67775897]
[1760775101974,22.88,187.25,187.24,10.67775897]
[1760775102311,1.97549493,187.25,187.24,10.67775897]
[1760775103371,10.67775897,187.28,187.24,10.67775897]
[1760775103601,24.85549493,187.27,187.25,0.65]
[1760775103900,24.85549493,187.27,187.24,10.67775897]
[1760775103901,1.97549493,187.26,187.24,10.67775897]
[1760775104079,1.97549493,187.26,187.24,11.32775897]
[1760775104690,22.88,187.27,187.24,11.32775897]
[1760775104890,24.85549493,187.27,187.24,11.32775897]
[1760775105080,22.88,187.26,187.24,11.32775897]
[1760775105882,22.88,187.27,187.25,0.65]
[1760775106185,22.88,187.27,187.24,10.67775897]
[1760775106388,22.88,187.27,187.24,11.32775897]
[1760775106594,1.97549493,187.25,187.24,10.67775897]
[1760775106802,1.97549493,187.26,187.24,10.67775897]
[1760775107800,24.85549493,187.27,187.25,0.65]
[1760775108393,24.85549493,187.27,187.25,11.32775897]
[1760775109894,24.85549493,187.27,187.25,10.67775897]
[1760775111095,22.88,187.26,187.25,10.67775897]
[1760775111284,24.85549493,187.26,187.25,10.67775897]
[1760775111904,22.88,187.26,187.25,11.32775897]
[1760775112204,24.85549493,187.27,187.25,11.32775897]
[1760775112802,22.88,187.27,187.25,11.32775897]
[1760775113495,12.20224103,187.27,187.26,0.65]
[1760775113804,11.32775897,187.3,187.26,0.65]
[1760775114098,2.65549493,187.29,187.23,6.52505633]
[1760775114300,1.97549493,187.28,187.23,6.52505633]
[1760775114500,1.97549493,187.28,187.24,0.65]
[1760775114876,1.97549493,187.25,187.2,0.53418803]
[1760775115079,2.65549493,187.24,187.2,0.65]
[1760775115278,1.97549493,187.22,187.2,62.0]
[1760775115478,1.97549493,187.21,187.2,62.0]
[1760775116881,1.97549493,187.23,187.2,62.65]
[1760775117105,1.97549493,187.27,187.21,0.65]
[1760775117395,1.97549493,187.29,187.23,5.3410244]
[1760775117597,22.88,187.28,187.24,0.65]
[1760775117796,24.85549493,187.28,187.25,0.65]
[1760775118586,22.88,187.27,187.24,62.0]
[1760775118792,24.85549493,187.27,187.24,62.65]
[1760775119102,1.97549493,187.26,187.24,62.65]
[1760775119483,24.85549493,187.27,187.24,62.65]
[1760775120302,16.74640781,187.32,187.28,37.14450507]
[1760775120488,1.97549493,187.29,187.28,37.14450507]
[1760775120695,1.97549493,187.3,187.28,37.79450507]
[1760775121500,1.97549493,187.29,187.28,37.14450507]
[1760775121697,2.65549493,187.29,187.28,37.14450507]
[1760775122304,24.85549493,187.29,187.28,37.14450507]
[1760775122809,16.06468714,187.34,187.28,37.79450507]
[1760775123002,6.01755162,187.36,187.29,0.65]
[1760775123209,1.97549493,187.34,187.29,37.79450507]
[1760775123412,24.85549493,187.34,187.3,0.65]
[1760775123597,1.97549493,187.34,187.3,0.65]
[1760775123790,1.97549493,187.34,187.3,37.79450507]
[1760775124100,1.97549493,187.36,187.31,1.18387432]
[1760775124293,1.97549493,187.36,187.32,0.69]
[1760775124512,22.88,187.35,187.32,0.69]
[1760775124710,22.88,187.35,187.31,5.3387018]
[1760775125008,1.97549493,187.36,187.31,5.3387018]
[1760775125009,1.97549493,187.36,187.33,0.69]
[1760775125202,2.07549493,187.37,187.34,0.69]
[1760775125402,2.07549493,187.37,187.35,0.69]
[1760775125403,0.1,187.37,187.35,0.69]
[1760775125710,0.1,187.37,187.36,0.69]
[1760775126527,0.1,187.37,187.36,6.56102187]
[1760775127414,1.97549493,187.44,187.36,19.90431819]
[1760775127615,2.07549493,187.45,187.37,11.85079835]
[1760775127808,2.07549493,187.45,187.38,1.22364637]
[1760775128116,0.1,187.45,187.39,0.71]
[1760775128325,0.1,187.45,187.41,5.33589456]
[1760775128534,0.1,187.45,187.42,1.24353247]
[1760775128924,0.1,187.45,187.43,0.71]
[1760775129104,0.1,187.45,187.44,0.53347554]
[1760775129314,0.1,187.45,187.44,1.24347554]
[1760775129995,0.1,187.45,187.44,0.71]
[1760775130698,0.1,187.45,187.44,6.04504054]
[1760775131926,0.1,187.45,187.44,6.57854459]
[1760775132298,0.1,187.45,187.44,1.24350405]
[1760775132601,0.1,187.45,187.44,6.57854459]
[1760775132797,2.07549493,187.45,187.44,0.53350405]
[1760775133002,2.07549493,187.45,187.42,5.86883842]
[1760775133202,2.07549493,187.45,187.43,0.71]
[1760775133509,0.1,187.45,187.43,0.71]
[1760775134796,2.07549493,187.45,187.43,0.71]
[1760775135320,0.1,187.45,187.43,0.71]
[1760775135523,2.07549493,187.45,187.43,0.71]
[1760775136019,2.07549493,187.45,187.43,6.04517627]
[1760775136221,0.1,187.45,187.44,0.71]
[1760775136729,0.1,187.47,187.46,61.9]
[1760775136915,0.1,187.47,187.46,62.61]
[1760775138426,0.1,187.47,187.46,67.94447135]
[1760775138636,0.1,187.47,187.46,68.47791847]
[1760775139124,0.1,187.47,187.46,61.9]
[1760775139318,2.07549493,187.47,187.46,61.9]
[1760775140621,2.74549493,187.47,187.46,61.9]
[1760775140822,2.07549493,187.47,187.46,61.9]
[1760775141320,0.1,187.47,187.46,61.9]
[1760775141527,2.74549493,187.47,187.46,61.9]
[1760775142411,2.07549493,187.47,187.46,61.9]
[1760775143225,33.52747465,187.47,187.46,61.9]
[1760775143926,38.86166145,187.47,187.4,61.9]
[1760775144105,1.97549493,187.41,187.4,61.9]
[1760775144522,2.64549493,187.41,187.4,61.9]
[1760775145222,1.97549493,187.41,187.4,61.9]
[1760775146422,2.64549493,187.41,187.4,61.9]
[1760775146617,25.52549493,187.41,187.4,61.9]
[1760775146813,30.86138949,187.41,187.33,61.9]
[1760775147018,1.97549493,187.34,187.33,61.9]
[1760775147506,1.97549493,187.34,187.33,62.61]
[1760775148828,1.97549493,187.34,187.33,61.9]
[1760775151226,1.97549493,187.34,187.31,61.9]
[1760775151431,1.97549493,187.32,187.31,61.9]
[1760775154316,2.64549493,187.32,187.31,61.9]
[1760775154815,25.52549493,187.32,187.31,61.9]
[1760775155321,30.86395318,187.32,187.31,61.9]
[1760775156216,30.86395318,187.32,187.26,62.61]
[1760775156423,1.97549493,187.27,187.26,61.9]
[1760775156639,1.97549493,187.27,187.26,62.61]
[1760775157942,1.97549493,187.27,187.26,61.9]
[1760775158616,2.69549493,187.27,187.26,61.9]
[1760775158832,8.03537852,187.27,187.26,61.9]
[1760775160131,30.91537852,187.27,187.26,61.9]
[1760775161019,30.91537852,187.27,187.19,62.58]
[1760775161226,1.97549493,187.21,187.19,62.58]
[1760775161425,1.97549493,187.21,187.2,0.68]
[1760775161736,1.97549493,187.21,187.2,62.58]
[1760775163417,3.08837329,187.21,187.2,62.58]
[1760775164846,0.72,187.25,187.21,58.81162671]
[1760775164847,22.88,187.22,187.21,58.81162671]
[1760775165147,26.68837329,187.22,187.21,58.81162671]
[1760775167219,3.80837329,187.22,187.21,58.81162671]
[1760775168343,3.08837329,187.22,187.21,58.81162671]
[1760775169571,8.42968297,187.22,187.21,58.81162671]
[1760775169850,9.14968297,187.22,187.21,58.81162671]
[1760775172448,10.87647521,187.27,187.21,59.49162671]
[1760775172753,22.88,187.25,187.22,0.68]
[1760775172951,3.08837329,187.23,187.22,0.68]
[1760775173128,3.08837329,187.23,187.21,58.81162671]
[1760775173332,3.08837329,187.22,187.21,58.81162671]
[1760775173834,3.08837329,187.22,187.21,59.49162671]
[1760775174035,3.08837329,187.23,187.21,59.49162671]
[1760775174239,3.08837329,187.26,187.22,1.21413096]
[1760775174453,3.08837329,187.26,187.23,0.68]
[1760775175126,25.96837329,187.26,187.23,0.68]
[1760775175327,3.08837329,187.26,187.23,0.68]
[1760775175626,3.08837329,187.27,187.23,0.68]
[1760775175821,3.08837329,187.27,187.23,59.49162671]
[1760775176034,3.08837329,187.27,187.24,0.68]
[1760775176259,3.08837329,187.26,187.25,0.68]
[1760775177048,3.08837329,187.26,187.23,59.49162671]
[1760775177357,3.08837329,187.24,187.23,59.49162671]
[1760775178349,3.08837329,187.25,187.23,59.49162671]
[1760775178566,5.33934743,187.29,187.24,0.68]
[1760775178730,3.08837329,187.26,187.25,0.68]
[1760775179157,3.08837329,187.26,187.23,59.49162671]
[1760775179340,3.08837329,187.24,187.23,58.81162671]
[1760775181558,22.88,187.21,187.14,0.2]
[1760775181773,3.08837329,187.15,187.14,0.2]
[1760775182437,25.96837329,187.15,187.14,0.2]
[1760775183141,22.88,187.19,187.14,0.88]
[1760775183345,3.08837329,187.15,187.14,5.54359303]
[1760775183642,3.08837329,187.17,187.14,5.54359303]
[1760775183842,3.08837329,187.17,187.15,0.68]
[1760775184051,3.08837329,187.17,187.16,0.68]
[1760775184649,3.08837329,187.17,187.14,0.2]
[1760775184972,26.63837329,187.2,187.14,0.2]
[1760775184973,3.08837329,187.15,187.14,0.2]
[1760775185466,3.75837329,187.15,187.14,0.2]
[1760775186341,3.08837329,187.15,187.14,0.2]
[1760775186760,25.96837329,187.15,187.14,0.2]
[1760775187237,3.08837329,187.15,187.14,0.86]
[1760775187434,5.34239439,187.19,187.14,0.86]
[1760775187435,22.88,187.16,187.14,0.86]
[1760775187753,25.96837329,187.15,187.14,0.86]
[1760775187949,3.08837329,187.15,187.14,0.86]
[1760775188166,3.08837329,187.17,187.14,0.86]
[1760775188337,3.08837329,187.18,187.15,0.7]
[1760775188837,3.08837329,187.17,187.16,0.7]
[1760775189435,0.67,187.2,187.14,0.2]
[1760775189648,7.59774468,187.15,187.14,0.2]
[1760775189862,22.88,187.18,187.14,0.9]
[1760775190164,7.59774468,187.15,187.14,0.9]
[1760775190351,7.59774468,187.15,187.14,0.2]
[1760775192772,13.3539875,187.21,187.14,60.24592888]
[1760775192773,7.59774468,187.17,187.14,60.24592888]
[1760775192939,7.59774468,187.15,187.14,59.01162671]
[1760775193371,7.59774468,187.17,187.14,59.01162671]
[1760775193666,7.59774468,187.18,187.15,0.7]
[1760775193974,7.59774468,187.18,187.16,0.7]
[1760775194458,7.59774468,187.18,187.14,59.01162671]
[1760775194642,7.59774468,187.17,187.15,0.7]
[1760775194841,7.59774468,187.17,187.16,0.7]
[1760775196642,7.59774468,187.17,187.14,59.01162671]
[1760775196843,7.59774468,187.16,187.14,59.71162671]
[1760775197043,7.59774468,187.17,187.15,0.7]
[1760775197271,7.59774468,187.17,187.16,0.7]
[1760775198076,7.59774468,187.17,187.16,58.81162671]
[1760775200558,8.26774468,187.17,187.14,59.01162671]
[1760775200756,7.59774468,187.15,187.14,59.01162671]
[1760775203783,8.26774468,187.15,187.14,59.01162671]
[1760775205770,13.61105218,187.15,187.14,59.01162671]
[1760775208350,12.94105218,187.15,187.14,59.01162671]
[1760775209068,13.61105218,187.15,187.14,59.01162671]
[1760775210470,12.94105218,187.15,187.14,59.01162671]
[1760775211369,8.43444171,187.15,187.14,59.01162671]
[1760775212674,13.35868289,187.15,187.14,59.01162671]
[1760775212876,9.10444171,187.15,187.14,59.01162671]
[1760775213550,8.43444171,187.15,187.14,59.01162671]
[1760775217576,9.10444171,187.15,187.14,59.01162671]
[1760775217877,8.43444171,187.15,187.14,59.01162671]
[1760775220080,9.15444171,187.15,187.14,59.01162671]
[1760775221173,20.31524006,187.15,187.14,59.01162671]
[1760775225480,19.20297067,187.15,187.14,59.01162671]
[1760775225878,19.20297067,187.15,187.14,0.2]
[1760775228485,18.48297067,187.15,187.14,0.2]
[1760775228787,7.32217232,187.15,187.14,0.2]
[1760775231100,30.20217232,187.15,187.14,0.87]
[1760775231982,1.97886482,187.15,187.14,0.87]
[1760775232294,1.97886482,187.16,187.14,0.87]
[1760775232503,22.88,187.15,187.14,0.2]
[1760775232899,24.85886482,187.15,187.14,0.2]
[1760775233093,24.85886482,187.15,187.14,0.87]
[1760775234387,1.97886482,187.15,187.14,0.87]
[1760775235703,1.97886482,187.15,187.14,59.68162671]
[1760775238390,22.88,187.15,187.14,59.68162671]
[1760775238588,24.85886482,187.15,187.14,59.68162671]
[1760775239506,1.97886482,187.15,187.14,59.68162671]
[1760775240407,1.97886482,187.15,187.14,59.01162671]
[1760775240701,7.32217232,187.15,187.14,59.01162671]
[1760775240906,8.04217232,187.15,187.14,59.01162671]
[1760775241301,7.32217232,187.15,187.14,59.01162671]
[1760775241698,7.32217232,187.15,187.14,0.2]
[1760775243703,1.97886482,187.15,187.14,0.87]
[1760775244604,5.3430282,187.16,187.14,0.87]
[1760775244605,5.34273766,187.17,187.14,0.87]
[1760775244804,24.85886482,187.15,187.14,0.87]
[1760775246109,1.97886482,187.15,187.14,0.87]
[1760775246605,22.88,187.17,187.14,62.87]
[1760775246796,22.88,187.15,187.14,62.2]
[1760775247192,1.97886482,187.15,187.14,62.2]
[1760775248194,7.32217232,187.15,187.14,62.2]
[1760775249313,1.97886482,187.15,187.14,62.89]
[1760775249690,22.88,187.15,187.14,62.89]
[1760775249990,24.85886482,187.15,187.14,62.89]
[1760775250306,1.97886482,187.15,187.14,62.89]
[1760775251009,1.97886482,187.16,187.14,62.89]
[1760775251214,22.88,187.15,187.14,62.2]
[1760775251714,22.88,187.15,187.14,62.89]
[1760775252102,1.97886482,187.17,187.14,62.89]
[1760775252305,1.97886482,187.18,187.15,0.69]
[1760775252614,1.97886482,187.18,187.15,62.69]
[1760775252806,22.88,187.17,187.15,62.0]
[1760775252997,22.88,187.17,187.16,0.69]
[1760775253516,1.97886482,187.18,187.16,62.69]
[1760775253694,1.97886482,187.19,187.17,0.69]
[1760775254010,1.97886482,187.19,187.18,0.69]
[1760775254310,24.85886482,187.19,187.18,0.69]
[1760775254489,24.85886482,187.19,187.16,62.0]
[1760775254695,1.97886482,187.19,187.17,0.69]
[1760775255095,24.85886482,187.19,187.17,0.69]
[1760775255910,24.85886482,187.19,187.18,0.69]
[1760775256210,22.88,187.19,187.18,0.69]
[1760775256810,40.05280439,187.26,187.18,0.69]
[1760775256811,5.33959846,187.28,187.18,68.0322527]
[1760775257112,24.85886482,187.25,187.19,1.22421657]
[1760775257314,24.85886482,187.25,187.2,0.69]
[1760775257610,24.85886482,187.25,187.21,0.5341595]
[1760775257814,24.85886482,187.25,187.22,0.69]
[1760775258017,24.85886482,187.25,187.21,0.5341595]
[1760775258018,1.97886482,187.24,187.23,0.69]
[1760775258228,0.97886482,187.24,187.23,0.69]
[1760775258821,23.85886482,187.24,187.23,0.69]
[1760775259195,1.97886482,187.25,187.23,0.69]
[1760775259397,0.69,187.31,187.24,0.53407391]
[1760775259398,1.97886482,187.26,187.24,0.53407391]
[1760775259599,1.97886482,187.27,187.25,0.69]
[1760775259799,1.97886482,187.26,187.24,0.53407391]
[1760775260006,1.97886482,187.26,187.24,1.22407391]
[1760775260405,1.97886482,187.26,187.24,0.53407391]
[1760775260718,1.97886482,187.26,187.24,0.69]
[1760775260910,1.97886482,187.26,187.25,0.69]
[1760775262116,1.97886482,187.26,187.24,0.69]
[1760775262612,1.97886482,187.25,187.24,0.69]
[1760775264721,1.97886482,187.25,187.24,62.69]
[1760775265611,1.97886482,187.25,187.24,62.0]
[1760775265804,1.97886482,187.25,187.24,62.69]
[1760775266516,1.97886482,187.26,187.24,62.69]
[1760775266704,1.97886482,187.26,187.25,0.69]
[1760775266908,1.97886482,187.26,187.24,62.0]
[1760775267109,1.97886482,187.26,187.24,62.69]
[1760775267517,1.97886482,187.25,187.24,62.0]
[1760775267719,1.97886482,187.25,187.24,62.69]
[1760775267913,1.97886482,187.26,187.24,62.69]
[1760775268825,24.85886482,187.29,187.25,1.22404538]
[1760775269001,24.85886482,187.29,187.26,0.69]
[1760775269203,24.85886482,187.29,187.27,0.69]
[1760775269426,16.75640781,187.33,187.28,0.69]
[1760775269623,1.97886482,187.3,187.29,0.69]
[1760775269807,24.85886482,187.3,187.28,62.0]
[1760775270007,1.97886482,187.29,187.28,62.0]
[1760775270206,4.39650213,187.34,187.28,62.0]
[1760775270207,1.97886482,187.31,187.28,62.69]
[1760775270419,1.97886482,187.32,187.29,1.22393133]
[1760775270727,22.88,187.31,187.3,0.69]
[1760775271027,1.97886482,187.32,187.3,62.69]
[1760775271207,24.85886482,187.33,187.31,0.69]
[1760775271397,5.85369563,187.39,187.32,0.69]
[1760775271610,1.97886482,187.37,187.32,63.22384582]
[1760775271811,1.97886482,187.36,187.33,0.69]
[1760775272010,22.88,187.35,187.34,1.22378882]
[1760775272215,22.88,187.35,187.34,62.69]
[1760775272621,1.97886482,187.36,187.34,62.69]
[1760775273123,1.97886482,187.35,187.34,62.0]
[1760775273320,1.97886482,187.35,187.34,62.69]
[1760775274807,1.97886482,187.36,187.34,62.69]
[1760775275531,1.97886482,187.36,187.35,0.69]
[1760775275730,24.85886482,187.37,187.35,62.69]
[1760775276032,1.97886482,187.38,187.36,0.69]
[1760775276236,1.97886482,187.38,187.37,0.69]
[1760775276604,1.97886482,187.38,187.37,62.69]
[1760775276918,2.07886482,187.4,187.37,62.69]
[1760775277236,24.95886482,187.4,187.38,0.53367488]
[1760775277722,2.07886482,187.4,187.38,1.22367488]
[1760775278534,1.97886482,187.39,187.38,1.22367488]
[1760775278827,1.97886482,187.39,187.37,63.22367487]
[1760775279005,1.97886482,187.39,187.37,62.53367487]
[1760775279200,1.97886482,187.39,187.38,0.69]
[1760775279800,0.1,187.4,187.38,0.69]
[1760775280119,0.1,187.4,187.39,1.2236464]
[1760775282025,2.07886482,187.4,187.39,0.5336464]
[1760775282228,2.74886482,187.4,187.38,62.0]
[1760775282411,1.97886482,187.39,187.38,62.0]
[1760775283928,1.97886482,187.39,187.36,62.0]
[1760775283929,38.78078815,187.39,187.36,62.0]
[1760775284100,22.88,187.37,187.31,62.0]
[1760775284309,1.97886482,187.32,187.31,62.0]
[1760775284506,1.97886482,187.32,187.28,63.22395984]
[1760775284735,1.97886482,187.3,187.28,0.53395984]
[1760775285029,1.97886482,187.29,187.28,0.69]
[1760775285321,0.67,187.33,187.26,0.69]
[1760775285527,3.08590345,187.27,187.26,0.69]
[1760775286817,3.08590345,187.28,187.26,0.69]
[1760775289229,3.08590345,187.27,187.26,0.69]
[1760775289711,3.08590345,187.28,187.26,0.69]
[1760775291325,0.67,187.38,187.28,62.0]
[1760775291552,3.08590345,187.32,187.29,1.22393132]
[1760775291716,3.08590345,187.3,187.29,62.0]
[1760775292742,25.96590345,187.3,187.29,62.0]
[1760775292927,3.08590345,187.3,187.29,62.0]
[1760775294444,26.63590345,187.3,187.29,62.0]
[1760775294650,25.96590345,187.3,187.29,62.0]
[1760775294945,3.08590345,187.3,187.29,62.0]
[1760775299055,25.96590345,187.3,187.29,62.0]
[1760775300546,12.18083519,187.3,187.29,62.0]
[1760775300849,22.88,187.27,187.21,62.69]
[1760775301158,22.88,187.26,187.21,62.69]
[1760775301445,3.08590345,187.24,187.22,0.69]
[1760775301646,3.08590345,187.24,187.23,0.69]
[1760775302220,3.08590345,187.24,187.21,62.0]
[1760775302420,3.08590345,187.23,187.21,62.69]
[1760775303142,3.08590345,187.22,187.21,62.0]
[1760775303630,3.75590345,187.22,187.21,62.0]
[1760775304133,3.08590345,187.22,187.21,62.69]
[1760775304530,3.08590345,187.23,187.21,62.69]
[1760775304743,3.08590345,187.24,187.21,62.0]
[1760775304944,25.96590345,187.25,187.22,1.22398133]
[1760775305149,3.08590345,187.27,187.23,0.69]
[1760775305328,22.88,187.25,187.24,0.53392445]
[1760775305529,22.88,187.25,187.24,63.22392445]
[1760775306043,3.08590345,187.25,187.24,62.0]
[1760775306248,3.08590345,187.25,187.21,62.0]
[1760775306249,3.75590345,187.25,187.21,62.0]
[1760775306437,3.08590345,187.22,187.21,62.0]
[1760775306633,3.08590345,187.22,187.18,0.69]
[1760775306833,3.08590345,187.2,187.17,62.0]
[1760775307036,3.08590345,187.19,187.17,62.0]
[1760775307569,22.88,187.21,187.17,62.0]
[1760775307736,3.08590345,187.18,187.17,62.0]
[1760775308952,25.96590345,187.18,187.17,62.0]
[1760775311563,3.08590345,187.18,187.17,62.0]